Cogmind - Beta 15 @@@ ROGUE MODE // 2025.07.27 @ 02:37:09 Player: Saturn Result: Destroyed by D-53 Grenadier with Mini Grenade Launcher Performance ------------- Evolutions (0) 0 Regions Visited (4) 800 Robots Destroyed (19) 95 Value Destroyed (422) 422 Prototype IDs (0) 0 Alien Tech Used (0) 0 Bonus (0) 0 TOTAL SCORE: 1317 Bonus ------- None Cogmind --------- Core Integrity 0/250 Matter 287/300 Energy 264/265 System Corruption 0% Temperature Cool (0) Movement Core (300) Ox5 Location -9/Mines Parts ------- > --- POWER (1) -------- Improved Ion Engine > --- PROPULSION (2) --- (None) > --- UTILITY (2) ------ Small Storage Unit > --- WEAPON (2) ------- Light Assault Rifle Makeshift Hammer > --- INVENTORY (8) ---- Improved Ion Engine Light Treads Aluminum Leg Aluminum Leg Aluminum Leg Aluminum Leg Beam Cannon Rocket Launcher Peak State ------------ > --- POWER ------------ Improved Ion Engine > --- PROPULSION ------- Aluminum Leg > --- UTILITY ---------- Small Storage Unit Small Storage Unit > --- WEAPON ----------- Light Assault Rifle Makeshift Hammer > --- INVENTORY -------- Improved Ion Engine Light Treads Aluminum Leg Aluminum Leg Aluminum Leg Aluminum Leg Beam Cannon Light Assault Rifle [Rating: 10] Favorites ----------- Power Improved Ion Engine Engine Improved Ion Engine Propulsion Aluminum Leg Leg Aluminum Leg Utility Small Storage Unit Device Heat Sink Storage Small Storage Unit Weapon Light Assault Rifle Energy Gun Particle Gun Energy Cannon Beam Cannon Ballistic Gun Light Assault Rifle Impact Weapon Makeshift Hammer Build | -11 -10 -10 -10 -9 ------- Run | Yrd Mat Min Exi Min Slots Evolved . | . . . . . Power . | . . . . . Propulsion . | . . . . . Utility . | . . . . . Weapon . | . . . . . Parts Attached 15 | 6 5 3 1 . Power 2 | 1 1 . . . Engine 2 | 1 1 . . . Core . | . . . . . Reactor . | . . . . . Propulsion 3 | 2 1 . . . Treads . | . . . . . Leg 3 | 2 1 . . . Wheel . | . . . . . Hover . | . . . . . Flight . | . . . . . Utility 3 | 1 1 . 1 . Device 1 | . 1 . . . Storage 2 | 1 . . 1 . Processor . | . . . . . Hackware . | . . . . . Protection . | . . . . . Artifact . | . . . . . Weapon 7 | 2 2 3 . . Energy Gun 1 | . 1 . . . Energy Cannon 1 | . 1 . . . Ballistic Gun 4 | 2 . 2 . . Ballistic Cannon . | . . . . . Launcher . | . . . . . Special Weapon . | . . . . . Impact Weapon 1 | . . 1 . . Slashing Weapon . | . . . . . Piercing Weapon . | . . . . . Special Melee Weapon . | . . . . . Unidentified Prototypes . | . . . . . Parts Lost 4 | . . 3 . 1 Power . | . . . . . Propulsion 2 | . . 1 . 1 Utility 1 | . . 1 . . Weapon 1 | . . 1 . . Highest Loss Streak 2 | . . 2 . 1 To Critical Strikes . | . . . . . Average Backups 7 | 2 6 7 8 8 Power . | . 1 1 1 1 Propulsion 4 | 1 3 4 5 5 Utility . | . . . . . Weapon 1 | . 1 2 2 2 Tool/Special . | . . . . . Unused Backups 10 | . 3 . . 7 Power 2 | . 1 . . 1 Propulsion 5 | . 1 . . 4 Utility . | . . . . . Weapon 3 | . 1 . . 2 Tool/Special . | . . . . . Average Slot Usage (%) 75 | . 95 77 71 70 Engine 14 | . 14 14 14 14 Leg 15 | . 28 14 14 13 Device 2 | . 9 6 . . Storage 14 | . 14 14 14 14 Energy Gun 2 | . 10 6 . . Ballistic Gun 15 | . 16 17 14 14 Impact Weapon 9 | . . 3 14 14 Peak Build Rating 10 | 6 9 9 10 10 Average Rating 8 | 4 7 7 9 9 On Entrance 6 | . 6 9 9 9 Naked Turns . | . . . . . Heaviest Build 21 | 10 17 17 21 16 Greatest Support 20 | 20 20 20 10 10 Greatest Overweight (x) 2 | 1 . 1 2 1 Average Overweight (x) . | . . . 1 1 Largest Inventory Capacity 8 | 8 8 8 8 8 Average Capacity 7 | 7 8 8 8 8 Most Carried 8 | 4 8 8 8 8 Average Carried 7 | 2 6 7 8 8 Final Capacity 8 | 8 8 8 8 8 Final Carried 8 | 4 7 8 8 8 Class Distribution -------------------- 100% | Mutant Dominant Class ---------------- Mutant | -10/Materials Mutant | -10/Mines Mutant | -10/Exiles Mutant | -9/Mines Resources | -11 -10 -10 -10 -9 ----------- Run | Yrd Mat Min Exi Min Matter Collected 381 | 212 133 36 . . Remotely . | . . . . . Salvage Created 433 | . 310 123 . . Parts 39 | . 29 10 . . Haulers Intercepted . | . . . . . Recyclers Shooed . | . . . . . Parts Field Recycled . | . . . . . Retrieved Matter . | . . . . . Parts Self-Destructed . | . . . . . Prevented . | . . . . . Kills | -11 -10 -10 -10 -9 ------- Run | Yrd Mat Min Exi Min Combat Hostiles Destroyed 16 | . 10 5 . 1 Guns 14 | . 8 5 . 1 Cannons 2 | . 2 . . . Classes Destroyed 5 | . 4 . . 1 Tunneler 1 | . 1 . . . Watcher 2 | . 2 . . . Swarmer 9 | . 6 3 . . Grunt 6 | . 4 2 . . Demolisher 1 | . . . . 1 Best Kill Streak 7 | . 7 3 . 1 Combat Bots Only 6 | . 6 3 . 1 Max Kills in Single Turn 2 | . 2 1 . 1 Gunslinging . | . . . . . Exploded . | . . . . . Melee . | . . . . . Uniques/NPCs Destroyed . | . . . . . Combat | -11 -10 -10 -10 -9 -------- Run | Yrd Mat Min Exi Min Hostile Shots Fired 96 | . 54 36 . 6 Missed 22 | . 14 8 . . Hits 74 | . 40 28 . 6 Projectile 74 | . 40 28 . 6 AOE 6 | . . . . 6 Damage Taken 866 | . 372 281 . 213 Core 264 | . 96 60 . 108 Absorbed by Shields . | . . . . . Core Remaining (%) 100 | 100 . . . . Volleys Fired 58 | . 35 15 5 3 Largest 2 | . 2 2 1 1 Hottest 85 | . 85 85 20 20 Shots Fired 92 | . 60 24 5 3 Gun 84 | . 52 24 5 3 Cannon 8 | . 8 . . . Launcher . | . . . . . Special . | . . . . . Kinetic 58 | . 35 15 5 3 Thermal 34 | . 25 9 . . Explosive . | . . . . . Electromagnetic . | . . . . . Robot Hit Streak 9 | . 6 9 . 2 Robot Miss Streak 5 | . 5 2 . 1 Penetration Max . | . . . . . Secondary Targets 2 | . 1 1 . . Max Gunslinging Chain 1 | . 1 1 . . Shots Hit Robots 47 | . 30 15 . 2 Core Hits 26 | . 16 9 . 1 Critical Kills . | . . . . . Critical Parts Destroyed . | . . . . . Critical Strikes 1 | . 1 . . . Burn 1 | . 1 . . . Melee Attacks . | . . . . . Impact . | . . . . . Slashing . | . . . . . Piercing . | . . . . . Sneak Attacks . | . . . . . Combat Hostiles . | . . . . . Follow-up Attacks . | . . . . . Damage Inflicted 638 | . 436 186 . 16 Guns 506 | . 314 176 . 16 Cannons 122 | . 122 . . . Explosions . | . . . . . Melee . | . . . . . Ramming 10 | . . 10 . . Kinetic 200 | . 106 78 . 16 Thermal 428 | . 330 98 . . Explosive . | . . . . . Electromagnetic . | . . . . . Impact . | . . . . . Slashing . | . . . . . Piercing . | . . . . . Highest Corruption . | . . . . . Average Corruption . | . . . . . Corruption Purged . | . . . . . Corruption Blocked . | . . . . . Overload Shots . | . . . . . Overflow Damage . | . . . . . Projectiles . | . . . . . Explosions . | . . . . . Melee . | . . . . . Knockbacks . | . . . . . Impact . | . . . . . Kinetic . | . . . . . Secondary . | . . . . . Self-Inflicted Damage . | . . . . . Shots . | . . . . . Rammed . | . . . . . Targets Rammed 3 | . . 3 . . Kicked 3 | . . 3 . . Crushed . | . . . . . Highest Temperature 263 | . 263 124 2 1 Average Temperature 65 | . 75 55 1 1 Received Heat Transfer 177 | . 87 90 . . Siege Activations . | . . . . . Martial Activations . | . . . . . Shielding Activations . | . . . . . Robots Disrupted . | . . . . . Combat Hostiles . | . . . . . Robots Corrupted . | . . . . . Combat Hostiles . | . . . . . Parts Fried . | . . . . . Impact Corruptions . | . . . . . Robots Melted . | . . . . . Combat Hostiles . | . . . . . Parts Melted 1 | . . 1 . . Heat Transferred 1036 | . 814 222 . . Parts Sabotaged . | . . . . . Parts Stolen . | . . . . . Parts Stripped . | . . . . . Power Chain Reactions . | . . . . . Alert | -11 -10 -10 -10 -9 ------- Run | Yrd Mat Min Exi Min Maximum Alert Level . | . . . . . Low Security (%) 100 | 100 100 100 . 100 Level 1 . | . . . . . Level 2 . | . . . . . Level 3 . | . . . . . Level 4 . | . . . . . Level 5 . | . . . . . High Security . | . . . . . Max Security . | . . . . . Peak Influence 150 | . 150 97 . . Initial 57 | . . 57 . . Average 27 | . 71 21 . . Influence Increases 424 | . 274 120 . 30 Destroy 0b10 Robot/C 320 | . 200 100 . 20 Destroy 0b10 Robot/NC 15 | . 15 . . . Destroy Leader 74 | . 44 20 . 10 Disable Machine 15 | . 15 . . . Influence Decreases 394 | . 127 267 . . Entered New Map 90 | . . 90 . . Time Decay 284 | . 127 157 . . Lost Part 20 | . . 20 . . Squads Dispatched 1 | . 1 . . . Investigation . | . . . . . Extermination . | . . . . . Reinforcement 1 | . 1 . . . Assault . | . . . . . Garrison . | . . . . . Intercept . | . . . . . Searches Triggered . | . . . . . Construction Impeded . | . . . . . Haulers Reinforced . | . . . . . Active Scanning Responses . | . . . . . Cargo Convoy Interrupts . | . . . . . Stealth | -11 -10 -10 -10 -9 --------- Run | Yrd Mat Min Exi Min Distress Signals 1 | . 1 . . . Communications Jammed . | . . . . . Distress Signals . | . . . . . Times Spotted 20 | . 13 5 . 2 Peak Tracking Total 3 | . 3 3 . 2 Tactical Retreats . | . . . . . Traps | -11 -10 -10 -10 -9 ------- Run | Yrd Mat Min Exi Min Traps Triggered . | . . . . . Indirectly . | . . . . . Trap Hack Attempts . | . . . . . Triggered . | . . . . . Disarmed . | . . . . . Reprogrammed . | . . . . . Reused . | . . . . . Traps Extracted . | . . . . . Installed . | . . . . . Triggered . | . . . . . Machines | -11 -10 -10 -10 -9 ---------- Run | Yrd Mat Min Exi Min Machines Disabled 1 | . 1 . . . Max in Single Turn 1 | . 1 . . . Machines Repaired . | . . . . . Machines Dismantled . | . . . . . Machines Sabotaged . | . . . . . Overloaded Fab Kills . | . . . . . Hacking | -11 -10 -10 -10 -9 --------- Run | Yrd Mat Min Exi Min Machines Accessed 4 | . . . 4 . Terminals . | . . . . . Fabricators . | . . . . . Repair Stations . | . . . . . Recycling Units . | . . . . . Scanalyzers . | . . . . . Garrison Access . | . . . . . Total Hacks 49 | . . . 49 . Successful 49 | . . . 49 . Failed . | . . . . . Catastrophic . | . . . . . Database Lockouts . | . . . . . Manual . | . . . . . Terminals . | . . . . . Fabricators . | . . . . . Repair Stations . | . . . . . Recycling Units . | . . . . . Scanalyzers . | . . . . . Garrison Access . | . . . . . Terminal Hacks 49 | . . . 49 . Record 49 | . . . 49 . Fabricator Hacks . | . . . . . Repair Station Hacks . | . . . . . Recycling Unit Hacks . | . . . . . Scanalyzer . | . . . . . Garrison Access Hacks . | . . . . . Unauthorized Hacks . | . . . . . Terminals . | . . . . . Fabricators . | . . . . . Repair Stations . | . . . . . Recycling Units . | . . . . . Scanalyzers . | . . . . . Garrison Access . | . . . . . Data Cores Recovered . | . . . . . Used . | . . . . . Hacking Detections . | . . . . . Full Trace Events . | . . . . . Feedback Events . | . . . . . Feedback Blocked . | . . . . . Robot Schematics Acquired . | . . . . . Robots Built . | . . . . . Authchips . | . . . . . Time . | . . . . . Total Robot Build Rating . | . . . . . Part Schematics Acquired . | . . . . . Parts Built . | . . . . . Authchips . | . . . . . Time . | . . . . . Total Part Build Rating . | . . . . . Parts Repaired . | . . . . . Time . | . . . . . Parts Recycled . | . . . . . Recycled Matter . | . . . . . Retrieved Matter . | . . . . . Retrieved Components . | . . . . . Parts Scanalyzed . | . . . . . Part Schematics Acquired . | . . . . . Parts Damaged . | . . . . . Bothacking | -11 -10 -10 -10 -9 ------------ Run | Yrd Mat Min Exi Min Used RIF Installer . | . . . . . Robots Hacked . | . . . . . Non-combat . | . . . . . Combat . | . . . . . Robot Hacks Applied . | . . . . . Relay Couplers Released . | . . . . . Fabnet Peak Effective % . | . . . . . Robots Rewired . | . . . . . Allies Hacked . | . . . . . Hacks Repelled . | . . . . . Allies | -11 -10 -10 -10 -9 -------- Run | Yrd Mat Min Exi Min Total Allies . | . . . . . Largest Group . | . . . . . Highest-Rated Group . | . . . . . Highest-Rated Ally . | . . . . . Total Orders . | . . . . . Ally Attacks . | . . . . . Total Damage . | . . . . . Kills . | . . . . . Allies Corrupted . | . . . . . Allies Melted . | . . . . . Intel | -11 -10 -10 -10 -9 ------- Run | Yrd Mat Min Exi Min Active Infowar (turns) . | . . . . . Robot Analysis Total . | . . . . . Derelict Logs Recovered 1 | . . 1 . . Drone Launches . | . . . . . Drone Recoveries . | . . . . . Exploration | -11 -10 -10 -10 -9 ------------- Run | Yrd Mat Min Exi Min Turns Passed 2753 | 68 316 607 1473 289 Spaces Moved 1440 | 48 179 295 769 149 Core 5 | 5 . . . . Treads . | . . . . . Legs 1435 | 43 179 295 769 149 Wheels . | . . . . . Hover . | . . . . . Flight . | . . . . . Fastest Speed 50 | 50 120 120 190 190 Average Speed 178 | 115 120 189 190 190 Slowest Speed 260 | 120 120 190 260 190 Overloaded Moves . | . . . . . Propulsion Burnouts . | . . . . . Robots Hopped . | . . . . . Potential Cave-ins . | . . . . . Cave-ins Triggered . | . . . . . Exploration Rate (%) 44 | 4 37 56 90 34 Regions Visited 4 Branch Regions 3 Pre-discovered Areas 3 | . . 2 1 . Known Exits Taken . | . . . . . Unknown Exits Taken 4 | 1 1 1 1 . Scrap Searched 1 | . . 1 . . Spaces Dug . | . . . . . Terrain Destroyed . | . . . . . Melee . | . . . . . Projectile . | . . . . . AOE . | . . . . . Terrain Rammed . | . . . . . Walls Destroyed . | . . . . . Machines Disabled . | . . . . . Actions | -11 -10 -10 -10 -9 --------- Run | Yrd Mat Min Exi Min Total 1533 | 57 228 319 775 154 Wait 1 | . . 1 . . Move 1436 | 47 178 294 768 149 Hop . | . . . . . Pick Up 11 | 4 5 1 . 1 Fast Attach 11 | 6 2 2 1 . Attach . | . . . . . Detach . | . . . . . Swap 4 | . 3 1 . . Drop 9 | . 5 2 1 1 Fire 58 | . 35 15 5 3 Melee . | . . . . . Ram . | . . . . . Kick 3 | . . 3 . . Crush . | . . . . . Escape Stasis . | . . . . . Rewire . | . . . . . Trap . | . . . . . Miscellaneous . | . . . . . Route ------- -11/Scrapyard -10/Materials (discovered 2 exits: [*Min x2]) -10/Mines (discovered 3 exits: [*Mat x2] / *Exi) -10/Exiles (discovered 2 exits: [*Min x2]) -9/Mines History --------- Turn | Location | Event 38 | -11/Scrapyard | Discovered new exit (range 14) 69 | -11/Scrapyard | Entered Materials 214 | -10/Materials | Discovered new exit (range 16) 282 | -10/Materials | Discovered new exit (range 16) 319 | -10/Materials | Build established: Mutant 385 | -10/Materials | Entered Mines 411 | -10/Mines | Met a Derelict bent on vengeance 662 | -10/Mines | Core integrity fell below 50% 742 | -10/Mines | Discovered new exit (range 5) 854 | -10/Mines | A weapon hastily lodged in a ceiling crevice suddenly fell to the ground 951 | -10/Mines | Discovered new exit (range 12) 952 | -10/Mines | Learned location of Storage (-7) 983 | -10/Mines | Deemed a non-threat by the Exiles lab entrance 984 | -10/Mines | Discovered new exit (range 5) 992 | -10/Mines | Entered Exiles 1019 | -10/Exiles | Discovered new exit (range 15) 1049 | -10/Exiles | Met 8R-AWN 1085 | -10/Exiles | Met EX-HEX 1157 | -10/Exiles | Met EX-DEC 1230 | -10/Exiles | Visited The Gauntlet 1591 | -10/Exiles | Discovered new exit (range 11) 1676 | -10/Exiles | Learned location of Zion (-7) 1752 | -10/Exiles | Met EX-BIN 2465 | -10/Exiles | Entered Mines 2466 | -9/Mines | Assembled infested the area 2471 | -9/Mines | Assisted by a Guerilla fighting off Assembled 2472 | -9/Mines | Received a Rocket Launcher from a helpful Derelict 2752 | -9/Mines | Core integrity fell below 20% 2754 | -9/Mines | Destroyed by D-53 Grenadier with Mini Grenade Launcher Last Messages --------------- launcher goes a long way." 2J-5X1(g): "Need to get rid of a swarm? Done. Need a big hole in the wall? Done." 2J-5X1(g): "Need a small hole in the wall? Leave that to the mining laser wimps, I say!" A derelict emerges from the shadows: "You need to get out of here! I've been tracking a group of Assembled to figure out where they're coming from, and they're closing on this area, come on!" 2J-5X1(g): "Would you like a rocket launcher? I know I would if I were you, so I'm going to lend you mine." 2J-5X1(g) slips back into the shadows. Dropped Lgt. Assault Rifle. Acquired Rocket Launcher. K-01 Serf collects debris. Aluminum Leg destroyed. D-53 Grenadier destroyed. U-05 Engineer lays Concrete. Map ----- +----------------------------------------------------+ | | | ????????????????????????????????????????? | | ????????????????????????????????????????? | | ????????????????????????????????????????? | | ????????????????????????????????????????? | | ????????????????????????????????????????? | | ????????????????????????????????????????? | | ????????????????????????????????????????? | | ????????????????????????????????????????? | | ????????????????????????????????????????? | | ????????????????????????????????????????? | | ????????????????????????????????????????? | | ?????????# ???????????????????????????? | | ?????????# ???????????????????????????? | | ????????## ???????????????????????????? | | ??????### ??????????????????????????? | | ????### ??????????????????????????? | | ????# ??????????????????????????? | | ??? ####??????####????????????? | | ??? ????? ?????????????? | | ??? ##??? ???????????????? | | ??# !! ### #????????????????? | | ???# ! ??????????????????? | | ?????# ! #???????????????????? | | ??????# ! d #% #????????????????? | | ????????# @ #????????????????? | | ????????## #????????????????? | | ?????????# # #????????????????? | | ?????????# # #????????????????? | | ?????????# # # # # ##???????????????? | | ?????????## ####u## #???????????????? | | ??????????##???# $ % #???????????? | | ???????????????# ### %t % #??????????? | | ???????????????#k#??# ?t ????????? | | ???????????????# #???# ? ?????????????? | | ???????????????# #????#??# ????????????? | | ???????####??### #????????? ????????????? | | ??????## ##?# #??????????????????????? | | ?????## #?# ###??#####???????????????? | | ???### ### #????? ##??????????????? | | ??## ## #?????# ##?????????????? | | ??# ##????# #?????????????? | | ???????# ##???# #?????????????? | | ???????## ##### #?????????????? | | ????????# #?????????????? | | ???????## ## #### #?????????????? | | ???????# ## ## #??# #????????????? | | ???????# ### ## #??# #???????????? | | ???????## ##?# ## ?? #???????????? | | ????????# #??# ####?## ##???????????? | +----------------------------------------------------+ Best States ------------- Heat Dissipation 35 Energy Generation 12 Energy Capacity 265 Matter Stores 300 Matter Capacity 300 Sight Range 16 Terrain Scan Density 10 Evasion (%) 55 Item Schematics ----------------- None Robot Schematics ------------------ None Fabricated ------------ Nothing Repaired ---------- Nothing Alien Tech Used ----------------- None Achievements -------------- None Challenges ------------ None Game ------ Seed GatlingGuidedDrillbomb Manual? 0 Play Time 00:14:41 Cumulative 7.5 hours Start 2025.07.27 @ 02:23:44 End 2025.07.27 @ 02:37:09 Sessions 1 Manual Loads 0 Difficulty Rogue Special Mode None Game No. 11 Rogue 2 Adventurer 9 Explorer 0 Win Type - Total 0 Types 0/0/0/0/0/0/0/0/0/0 Lore% 9 Gallery% 16 Achievement% 16 Wizard Run 0 Options --------- Layout 1 ASCII 0 Keyboard 0 Movement Numpad Keybinds 0 Fullscreen 1 Font 24/Smallcaps Map View 50x35 Zoom Use 0% Tactical HUD 0 Map Filters NONE Filters NONE Steam 1 RUN: b90d71b2-7884-4067-8e62-abb90cb88342